bitfinex/quotes_BTCUSD_20251114
["timestamp","ask_amount","ask_price","bid_price","bid_amount"]
[1763137261223,0.01037021,96430.0,96409.0,0.02178]
[1763137261429,0.01037021,96430.0,96413.0,0.02178]
[1763137261612,0.20742197,96422.0,96413.0,0.02178]
[1763137261794,0.20740648,96429.0,96413.0,0.02178]
[1763137261990,0.01429274,96428.0,96413.0,0.02178]
[1763137262259,0.01037021,96430.0,96414.0,0.03926699]
[1763137262260,0.20742188,96422.0,96414.0,0.03926699]
[1763137262458,0.20741724,96424.0,96414.0,0.03926699]
[1763137262653,0.20743172,96418.0,96414.0,0.03926699]
[1763137262860,0.00013559,96428.0,96416.0,0.10479654]
[1763137263083,0.20743195,96418.0,96416.0,0.10479654]
[1763137263286,0.00013559,96428.0,96427.0,0.02178]
[1763137263900,0.00013559,96428.0,96426.0,0.06792]
[1763137264420,0.00013559,96428.0,96421.0,0.323]
[1763137264421,0.00013559,96428.0,96427.0,0.06792]
[1763137264927,0.00013559,96428.0,96427.0,0.0897]
[1763137265118,0.00013559,96428.0,96427.0,0.06792]
[1763137265665,3.778e-05,96428.0,96427.0,0.11244107]
[1763137266017,3.778e-05,96428.0,96427.0,0.09066107]
[1763137266450,0.00116382,96457.0,96427.0,0.09066107]
[1763137266451,0.00116382,96457.0,96450.0,0.2]
[1763137266668,0.00129964,96457.0,96452.0,0.10479654]
[1763137267079,0.20734842,96456.0,96453.0,0.02178]
[1763137267251,0.20735487,96453.0,96452.0,0.10479654]
[1763137268049,0.20738497,96439.0,96438.0,0.0897]
[1763137268425,0.20740126,96432.0,96421.0,0.32324288]
[1763137268608,0.02502,96452.0,96422.0,0.06792]
[1763137268805,0.00129964,96457.0,96422.0,0.06792]
[1763137268806,0.01887468,96451.0,96440.0,0.01]
[1763137269075,0.02017432,96457.0,96440.0,0.01]
[1763137269271,0.02017432,96457.0,96440.0,0.6156155]
[1763137269272,0.00129964,96457.0,96440.0,0.6156155]
[1763137269514,0.00129964,96457.0,96441.0,0.323]
[1763137270039,0.20737588,96444.0,96430.0,0.6156155]
[1763137270224,0.00129964,96457.0,96450.0,0.01]
[1763137270225,0.20735917,96451.0,96450.0,0.01]
[1763137270429,0.20735917,96451.0,96445.0,0.06792]
[1763137270430,0.20736837,96447.0,96445.0,0.06792]
[1763137270625,0.20735404,96454.0,96445.0,0.06792]
[1763137270841,0.00129964,96457.0,96445.0,0.39092]
[1763137271037,0.00129964,96457.0,96450.0,0.2]
[1763137271651,0.00129964,96457.0,96450.0,0.4]
[1763137271850,0.00129964,96457.0,96451.0,0.323]
[1763137272260,0.00129964,96457.0,96452.0,0.06792]
[1763137272508,0.00129964,96457.0,96453.0,0.06792]
[1763137274023,0.00129964,96457.0,96454.0,0.36641874]
[1763137274693,0.20732291,96468.0,96461.0,0.323]
[1763137274868,0.20732291,96468.0,96466.0,0.07368744]
[1763137275085,0.2072947,96481.0,96480.0,0.01]
[1763137275287,0.20732478,96467.0,96466.0,0.07368744]
[1763137275538,0.20732478,96467.0,96466.0,0.39668744]
[1763137275539,0.00026967,96467.0,96466.0,0.39668744]
[1763137275740,0.00026967,96467.0,96466.0,0.46460744]
[1763137276030,0.00026967,96467.0,96466.0,0.46560744]
[1763137276227,0.20759445,96467.0,96466.0,0.46460744]
[1763137276774,0.00026967,96467.0,96466.0,0.46460744]
[1763137276969,0.00026967,96467.0,96466.0,0.46560744]
[1763137277518,0.00026967,96467.0,96466.0,0.07468744]
[1763137277656,0.00026967,96467.0,96466.0,0.14260744]
[1763137277857,0.00026967,96467.0,96466.0,0.14360744]
[1763137278091,0.00026967,96467.0,96466.0,0.07568744]
[1763137278295,0.01914435,96467.0,96466.0,0.07568744]
[1763137278502,0.01914435,96467.0,96466.0,0.07468744]
[1763137278913,0.05400435,96467.0,96466.0,0.001]
[1763137279117,0.01914435,96467.0,96460.0,0.01]
[1763137279313,0.20734105,96460.0,96454.0,0.06788]
[1763137279520,0.20734907,96456.0,96454.0,0.06788]
[1763137280230,0.36492062,96476.0,96454.0,0.06788]
[1763137280231,0.06788,96484.0,96454.0,0.06788]
[1763137280432,0.20731431,96472.0,96455.0,0.02073505]
[1763137280635,0.06788,96483.0,96456.0,0.02073484]
[1763137280636,0.207317,96471.0,96456.0,0.02073484]
[1763137280848,0.22619324,96470.0,96460.0,0.01]
[1763137281024,0.01887468,96470.0,96460.0,0.01]
[1763137281407,0.20730097,96479.0,96466.0,0.10479654]
[1763137281779,0.20730097,96479.0,96451.0,0.323]
[1763137281780,0.20740218,96431.0,96430.0,0.00116398]
[1763137281785,0.20740218,96431.0,96430.0,0.01116398]
[1763137282112,0.24226218,96431.0,96430.0,0.00116398]
[1763137282857,0.24226218,96431.0,96430.0,0.0012998]
[1763137283499,0.20740218,96431.0,96430.0,0.0012998]
[1763137284336,0.20740218,96431.0,96430.0,0.0112998]
[1763137284966,0.24226218,96431.0,96430.0,0.0012998]
[1763137285135,0.24326218,96431.0,96430.0,0.0012998]
[1763137286168,0.20840218,96431.0,96430.0,0.0012998]
[1763137287158,0.24326218,96431.0,96430.0,0.0012998]
[1763137287352,0.24326218,96431.0,96430.0,0.0112998]
[1763137288336,0.20840218,96431.0,96430.0,0.0112998]
[1763137291062,0.001,96431.0,96430.0,0.0012998]
[1763137291661,0.06788,96454.0,96430.0,0.0012998]
[1763137291866,0.20735702,96452.0,96450.0,0.01]
[1763137292070,0.20735702,96452.0,96451.0,0.1498]
[1763137293229,0.20735025,96456.0,96450.0,0.01]
[1763137293435,0.01036376,96490.0,96451.0,0.1498]
[1763137293608,0.20731403,96472.0,96464.0,0.10479654]
[1763137293806,0.20731094,96474.0,96464.0,0.10479654]
[1763137294010,0.20731185,96474.0,96464.0,0.10479654]
[1763137294231,0.20757101,96466.0,96464.0,0.10479654]
[1763137294630,0.20753101,96466.0,96464.0,0.10479654]
[1763137295213,0.00020271,96466.0,96464.0,0.10479654]
[1763137295417,0.20732908,96465.0,96464.0,0.10479654]
[1763137295813,0.00020271,96466.0,96464.0,0.10479654]
[1763137296114,0.00020271,96466.0,96465.0,0.4728]
[1763137297474,0.00020271,96466.0,96465.0,0.54072]
[1763137297795,0.00020271,96466.0,96465.0,0.58513874]
[1763137298015,0.00020271,96466.0,96465.0,0.98513874]
[1763137299295,0.00020271,96466.0,96465.0,0.98613874]
[1763137299760,0.00020271,96466.0,96465.0,0.98609874]
[1763137299975,0.00020271,96466.0,96465.0,0.98509874]
[1763137300175,0.00020271,96466.0,96465.0,0.98609874]
[1763137300601,0.00020271,96466.0,96465.0,0.98809874]
[1763137302767,0.00020271,96466.0,96465.0,0.8768]
[1763137303019,0.20752964,96466.0,96465.0,0.07188]
[1763137303515,0.00020271,96466.0,96465.0,0.004]
[1763137303758,0.00020271,96466.0,96465.0,0.39488]
[1763137303969,0.00020271,96466.0,96465.0,0.39288]
[1763137304167,0.00020271,96466.0,96465.0,0.39388]
[1763137304537,0.00020271,96466.0,96465.0,0.39188]
[1763137304733,0.00020271,96466.0,96465.0,0.001]
[1763137304916,0.00020271,96466.0,96465.0,0.07088]
[1763137305484,0.00020271,96466.0,96465.0,0.06888]
[1763137305989,0.00020271,96466.0,96465.0,0.4136129]
[1763137306128,0.00020271,96466.0,96465.0,0.39288]
[1763137306957,0.20752964,96466.0,96465.0,0.39288]
[1763137307373,0.00020271,96466.0,96465.0,0.39288]
[1763137308988,0.20752964,96466.0,96465.0,0.39288]
[1763137309600,0.20752964,96466.0,96465.0,0.54268]
[1763137309808,0.00020271,96466.0,96465.0,0.54268]
[1763137310009,0.20752964,96466.0,96465.0,0.4748]
[1763137310212,0.20752964,96466.0,96465.0,0.54268]
[1763137310611,0.20752964,96466.0,96465.0,0.21968]
[1763137310789,0.20752964,96466.0,96465.0,0.1518]
[1763137310993,0.20752964,96466.0,96465.0,0.21968]
[1763137311527,0.20752964,96466.0,96465.0,0.1508]
[1763137311939,0.20752964,96466.0,96465.0,0.001]
[1763137311940,0.24046964,96466.0,96465.0,0.001]
[1763137312177,0.20752964,96466.0,96465.0,0.001]
[1763137312535,0.20734683,96457.0,96452.0,0.06788]
[1763137312738,0.00020271,96466.0,96453.0,0.02073548]
[1763137312945,0.00020271,96466.0,96447.0,0.6156155]
[1763137312946,0.02629,96465.0,96447.0,0.323]
[1763137313158,0.20733768,96461.0,96460.0,0.01]
[1763137313589,0.20733768,96461.0,96454.0,0.02073527]
[1763137313763,0.20734043,96460.0,96455.0,0.02073505]
[1763137314105,0.20733462,96463.0,96453.0,0.1498]
[1763137314261,0.20733123,96464.0,96453.0,0.1498]
[1763137314866,0.00020271,96466.0,96453.0,0.1498]
[1763137314867,0.20735131,96455.0,96453.0,0.1498]
[1763137315281,0.20735131,96455.0,96453.0,0.1508]
[1763137315685,0.20735066,96457.0,96453.0,0.1508]
[1763137315686,0.20734736,96457.0,96453.0,0.1508]
[1763137316005,0.00020271,96466.0,96456.0,0.10479654]
[1763137316335,0.20733715,96462.0,96456.0,0.10479654]
[1763137316488,0.20733736,96462.0,96456.0,0.10479654]
[1763137316691,0.20734627,96457.0,96456.0,0.10479654]
[1763137317635,0.20735272,96454.0,96453.0,0.1498]
[1763137317782,0.20735272,96454.0,96453.0,0.21768]
[1763137319804,0.20735272,96454.0,96453.0,0.21968]
[1763137320303,0.20735272,96454.0,96453.0,0.1498]
[1763137321759,0.24028272,96454.0,96453.0,0.1498]
[1763137322216,0.20732908,96465.0,96447.0,0.00013582]
[1763137322425,0.20733768,96461.0,96460.0,0.01]
[1763137322577,0.20736562,96448.0,96447.0,0.00013582]
[1763137322791,0.24029562,96448.0,96447.0,0.00013582]
[1763137323652,0.20740218,96431.0,96430.0,0.00116398]
[1763137323858,0.21672856,96431.0,96430.0,0.00116398]
[1763137324858,0.21772856,96431.0,96430.0,0.00116398]
[1763137326052,0.21672856,96431.0,96430.0,0.00116398]
[1763137326220,0.21772856,96431.0,96430.0,0.00116398]
[1763137327109,0.40034874,96431.0,96360.0,0.2004]
[1763137327338,0.20750977,96381.0,96380.0,0.01]
[1763137327541,0.20750547,96383.0,96380.0,0.01]
[1763137327743,0.20750547,96383.0,96361.0,0.02075528]
[1763137327744,0.2075076,96383.0,96361.0,0.02075528]
[1763137328130,0.20750872,96382.0,96362.0,0.01853099]
[1763137328330,0.06788,96388.0,96371.0,0.10479654]
[1763137328554,0.06796905,96388.0,96371.0,0.10479654]
[1763137328748,0.20751254,96380.0,96371.0,0.10479654]
[1763137328932,0.06796905,96388.0,96380.0,0.01]
[1763137329145,0.20750977,96381.0,96380.0,0.01]
[1763137329360,0.23930977,96381.0,96380.0,0.011]
[1763137329571,0.30718977,96381.0,96380.0,0.011]
[1763137329798,0.27538977,96381.0,96380.0,0.01]
[1763137330290,8.905e-05,96388.0,96371.0,0.10479654]
[1763137330519,0.20752869,96373.0,96371.0,0.10479654]
[1763137330964,0.06788,96382.0,96371.0,0.10479654]
[1763137331179,0.03395452,96390.0,96371.0,0.10479654]
[1763137331180,0.01037452,96390.0,96371.0,0.10479654]
[1763137331633,0.20750364,96384.0,96371.0,0.10479654]
[1763137331848,0.20750364,96384.0,96372.0,0.06788]
[1763137332131,0.20749901,96386.0,96372.0,0.06788]
[1763137332354,0.2075041,96384.0,96372.0,0.06788]
[1763137332557,0.20750711,96383.0,96372.0,0.06788]
[1763137332761,0.2075084,96382.0,96372.0,0.06788]
[1763137333172,0.20749309,96389.0,96373.0,0.1498]
[1763137333354,0.20749686,96387.0,96373.0,0.1498]
[1763137333570,0.20746435,96403.0,96374.0,0.02075248]
[1763137333571,0.06788,96397.0,96374.0,0.02075248]
[1763137333772,0.20748726,96392.0,96374.0,0.34375248]
[1763137333958,0.20758456,96388.0,96387.0,0.00120085]
[1763137334521,8.905e-05,96388.0,96387.0,0.00120085]
[1763137335056,0.20758375,96388.0,96387.0,0.00120085]
[1763137336381,0.23938375,96388.0,96387.0,0.00120085]
[1763137338033,0.20758375,96388.0,96387.0,0.00120085]
[1763137338240,8.905e-05,96388.0,96387.0,0.00120085]
[1763137338464,0.01896373,96388.0,96387.0,0.00120085]
[1763137339217,8.905e-05,96388.0,96387.0,0.00120085]
[1763137340361,8.905e-05,96388.0,96387.0,0.47400085]
[1763137340568,0.00039556,96430.0,96387.0,0.47400085]
[1763137340569,0.00039556,96430.0,96410.0,0.2]
[1763137340783,0.00048477,96430.0,96427.0,0.10479654]
[1763137341245,0.00048477,96430.0,96411.0,0.323]
[1763137341246,0.20743237,96417.0,96414.0,0.06792]
[1763137341459,0.20743237,96417.0,96390.0,0.56718254]
[1763137341460,0.01887468,96416.0,96390.0,0.36718254]
[1763137341675,0.01887468,96416.0,96410.0,0.01]
[1763137341886,0.20746027,96404.0,96403.0,0.06792]
[1763137342336,0.20745059,96409.0,96403.0,0.06792]
[1763137342546,0.20745294,96408.0,96403.0,0.06792]
[1763137342763,0.20745085,96409.0,96403.0,0.06792]
[1763137342974,0.20745289,96408.0,96403.0,0.06792]
[1763137343188,0.20745596,96406.0,96403.0,0.06792]
[1763137343441,0.20746887,96400.0,96390.0,0.57918254]
[1763137343662,0.20747591,96397.0,96391.0,0.06792]
[1763137343874,0.01037129,96420.0,96410.0,0.01]
[1763137343875,0.2074452,96411.0,96410.0,0.01]
[1763137344771,0.2074452,96411.0,96410.0,0.01045336]
[1763137346024,0.2074452,96411.0,96410.0,0.01145336]
[1763137346237,0.20746457,96402.0,96399.0,0.06792]
[1763137346409,0.20747533,96397.0,96396.0,0.0009578]
[1763137346605,0.20747533,96397.0,96396.0,0.06901339]
[1763137347177,0.20747533,96397.0,96396.0,0.00109339]
[1763137349120,0.20747533,96397.0,96396.0,0.00209339]
[1763137349755,0.20747533,96397.0,96396.0,0.00309339]
[1763137350782,0.24150533,96397.0,96396.0,0.00309339]
[1763137351615,0.20747533,96397.0,96396.0,0.00209339]
[1763137351819,0.01037236,96410.0,96387.0,0.36718254]
[1763137352020,0.06792,96409.0,96388.0,0.01224699]
[1763137352223,0.02593145,96408.0,96390.0,0.2]
[1763137352433,0.02593145,96408.0,96398.0,0.36718254]
[1763137352642,0.00045302,96410.0,96400.0,0.01]
[1763137352871,0.20745181,96408.0,96400.0,0.01]
[1763137353113,0.00045302,96410.0,96400.0,0.01]
[1763137353465,0.00045302,96410.0,96400.0,0.37718254]
[1763137354389,0.00045302,96410.0,96400.0,0.77718254]
[1763137354589,0.00045302,96410.0,96400.0,0.58718254]
[1763137354793,0.00045302,96410.0,96400.0,0.57718254]
[1763137355173,0.20745241,96408.0,96400.0,0.56818254]
[1763137355355,0.20745874,96405.0,96400.0,0.56918254]
[1763137355556,0.00045302,96410.0,96400.0,0.202]
[1763137355868,0.00045302,96410.0,96401.0,0.4]
[1763137356207,0.20745381,96407.0,96400.0,0.56818254]
[1763137356382,0.00045302,96410.0,96400.0,0.56818254]
[1763137356383,0.00045302,96410.0,96400.0,0.57718254]
[1763137356585,0.00045302,96410.0,96400.0,0.56818254]
[1763137356790,0.20744951,96409.0,96400.0,0.96918254]
[1763137356989,0.2079007,96410.0,96400.0,0.96918254]
[1763137357241,0.2079007,96410.0,96400.0,0.96818254]
[1763137357413,0.00045302,96410.0,96400.0,0.97818254]
[1763137357620,0.00045302,96410.0,96401.0,0.01224267]
[1763137357821,0.20790047,96410.0,96401.0,0.01224267]
[1763137358022,0.00045302,96410.0,96400.0,0.57818254]
[1763137358206,0.00045302,96410.0,96401.0,0.001]
[1763137358628,0.00045302,96410.0,96401.0,0.01324246]
[1763137359544,0.00045302,96410.0,96401.0,0.001]
[1763137359772,0.20790099,96410.0,96401.0,0.002]
[1763137360092,0.20745166,96408.0,96401.0,0.002]
[1763137360301,0.00045302,96410.0,96401.0,0.002]
[1763137360821,0.20790117,96410.0,96401.0,0.002]
[1763137361032,0.00045302,96410.0,96401.0,0.001]
[1763137361234,0.20790144,96410.0,96401.0,0.001]
[1763137361457,0.00045302,96410.0,96401.0,0.002]
[1763137362294,0.20790052,96410.0,96401.0,0.002]
[1763137362480,0.00045302,96410.0,96401.0,0.002]
[1763137362682,0.00045302,96410.0,96401.0,0.001]
[1763137363091,0.20745353,96408.0,96401.0,0.002]
[1763137363250,0.20745381,96407.0,96401.0,0.002]
[1763137363458,0.20745653,96406.0,96401.0,0.002]
[1763137363669,0.2074582,96405.0,96401.0,0.002]
[1763137363874,0.2074582,96405.0,96401.0,0.001]
[1763137364069,0.00045302,96410.0,96400.0,0.2]
[1763137364275,0.20790101,96410.0,96401.0,0.001]
[1763137364650,0.20790089,96410.0,96401.0,0.001]
[1763137364898,0.00045302,96410.0,96401.0,0.001]
[1763137365113,0.20745652,96406.0,96401.0,0.002]
[1763137365322,0.20745652,96406.0,96402.0,0.1498]
[1763137365527,0.20745652,96406.0,96403.0,0.06788]
[1763137365737,0.00045302,96410.0,96403.0,0.06788]
[1763137365949,0.20745016,96409.0,96403.0,0.06788]
[1763137366169,0.20745166,96408.0,96403.0,0.06788]
[1763137366580,0.00045302,96410.0,96403.0,0.06788]
[1763137367075,0.00045302,96410.0,96404.0,0.01224167]
[1763137367314,0.20790198,96410.0,96404.0,0.01224167]
[1763137367545,0.20790198,96410.0,96403.0,0.06888]
[1763137367759,0.00045302,96410.0,96403.0,0.06888]
[1763137367957,0.00045302,96410.0,96403.0,0.06788]
[1763137368301,0.00045302,96410.0,96403.0,0.06888]
[1763137368507,0.00045302,96410.0,96403.0,0.06788]
[1763137368702,0.00045302,96410.0,96403.0,0.06888]
[1763137369107,0.00045302,96410.0,96403.0,0.06788]
[1763137370695,0.00045302,96410.0,96403.0,0.06988]
[1763137370902,0.20745505,96407.0,96403.0,0.06988]
[1763137371132,0.207456,96406.0,96403.0,0.06988]
[1763137371343,0.207456,96406.0,96404.0,0.1498]
[1763137371344,0.20745811,96405.0,96404.0,0.1498]
[1763137371561,0.20745811,96405.0,96403.0,0.002]
[1763137371562,0.23272027,96404.0,96403.0,0.002]
[1763137371768,0.26675027,96404.0,96403.0,0.002]
[1763137371973,0.26675027,96404.0,96403.0,0.001]
[1763137372175,0.26675027,96404.0,96403.0,0.002]
[1763137372387,0.26675027,96404.0,96403.0,0.001]
[1763137372614,0.20746027,96404.0,96403.0,0.001]
[1763137372827,0.20746257,96403.0,96391.0,0.01224456]
[1763137373031,0.20745596,96406.0,96403.0,0.001]
[1763137373234,0.20746027,96404.0,96403.0,0.001]
[1763137373442,0.20748005,96395.0,96390.0,0.06788]
[1763137373651,0.20747334,96398.0,96391.0,0.01224908]
[1763137373887,0.20747754,96396.0,96391.0,0.01224908]
[1763137374078,0.20748001,96395.0,96391.0,0.01224908]
[1763137374205,0.20747445,96398.0,96391.0,0.01224908]
[1763137374411,0.20747745,96397.0,96391.0,0.01224908]
[1763137374813,0.20747973,96395.0,96391.0,0.01224908]
[1763137375017,0.20747973,96395.0,96391.0,0.001]
[1763137375234,0.18386601,96395.0,96390.0,0.06888]
[1763137375441,0.2074819,96394.0,96391.0,0.001]
[1763137375636,0.20748421,96393.0,96391.0,0.001]
[1763137375871,0.06788,96407.0,96391.0,0.01324928]
[1763137376017,0.20790038,96410.0,96400.0,0.01]
[1763137376221,0.20744951,96409.0,96401.0,0.08012267]
[1763137376535,0.20745632,96406.0,96401.0,0.08012267]
[1763137376759,0.20746065,96404.0,96401.0,0.08012267]
[1763137377076,0.00045302,96410.0,96402.0,0.1498]
[1763137377438,0.00045302,96410.0,96403.0,0.012242]
[1763137377862,0.00045302,96410.0,96402.0,0.1498]
[1763137378067,0.00045302,96410.0,96403.0,0.012242]
[1763137380035,0.00116435,96423.0,96411.0,0.14934698]
[1763137380282,0.00130018,96423.0,96414.0,0.323]
[1763137380677,0.00130018,96423.0,96415.0,0.4]
[1763137381874,0.00130018,96423.0,96415.0,0.401]
[1763137382406,0.00130018,96423.0,96415.0,0.001]
[1763137382749,0.00130018,96423.0,96417.0,0.04341874]
[1763137382988,0.00130018,96423.0,96420.0,0.01]
[1763137383212,0.00130018,96423.0,96421.0,0.06788]
[1763137383791,0.00130018,96423.0,96422.0,1.03247398]
[1763137383979,0.0004096,96423.0,96422.0,1.18917398]
[1763137385174,0.0004096,96423.0,96422.0,1.23459272]
[1763137385385,0.0004096,96423.0,96422.0,1.08524574]
[1763137386339,0.0004096,96423.0,96422.0,0.96355874]
[1763137386559,0.0004096,96423.0,96422.0,0.96655874]
[1763137386752,0.0004096,96423.0,96422.0,0.403]
[1763137386925,0.0004096,96423.0,96422.0,0.47088]
[1763137387291,0.0004096,96423.0,96422.0,0.46788]
[1763137387497,0.0004096,96423.0,96422.0,0.79088]
[1763137387725,0.0004096,96423.0,96422.0,1.03369]
[1763137387929,0.0004096,96423.0,96422.0,0.79588]
[1763137388124,0.0004096,96423.0,96422.0,0.79388]
[1763137388278,0.0004096,96423.0,96422.0,1.073292]
[1763137388476,0.0004096,96423.0,96422.0,0.514049]
[1763137389282,0.0004096,96423.0,96422.0,0.511049]
[1763137389483,0.0004096,96423.0,96422.0,0.95446774]
[1763137389710,0.0004096,96423.0,96422.0,0.95646774]
[1763137391050,0.0004096,96423.0,96422.0,0.727]
[1763137391252,0.0004096,96423.0,96422.0,0.404]
[1763137391502,0.0004096,96423.0,96422.0,0.004]
[1763137391712,0.0004096,96423.0,96422.0,0.07184]
[1763137392375,0.0004096,96423.0,96422.0,0.06984]
[1763137392591,0.0004096,96423.0,96422.0,0.06784]
[1763137392819,0.0004096,96423.0,96422.0,0.07184]
[1763137393040,0.0004096,96423.0,96422.0,0.002]
[1763137393260,0.0004096,96423.0,96422.0,0.06784]
[1763137393699,0.0004096,96423.0,96422.0,0.06884]
[1763137393921,0.0004096,96423.0,96422.0,0.001]
[1763137394378,0.0004096,96423.0,96422.0,0.002]
[1763137395296,0.0004096,96423.0,96422.0,0.001]
[1763137395518,0.20742154,96422.0,96420.0,0.56784]
[1763137395742,0.0004096,96423.0,96420.0,0.56784]
[1763137395953,0.20783114,96423.0,96422.0,0.001]
[1763137396383,0.20742369,96421.0,96420.0,0.5]
[1763137396600,0.24103369,96421.0,96420.0,0.51]
[1763137396815,0.24103369,96421.0,96420.0,0.511]
[1763137397023,0.24103369,96421.0,96420.0,0.501]
[1763137397232,0.20742369,96421.0,96420.0,0.51]
[1763137397549,0.20742369,96421.0,96420.0,0.5]
[1763137397752,0.20742369,96421.0,96420.0,0.51]
[1763137398596,0.0004096,96423.0,96420.0,0.5]
[1763137398802,0.20783067,96423.0,96420.0,0.5]
[1763137399007,0.20742227,96422.0,96420.0,0.5]
[1763137399209,0.0004096,96423.0,96420.0,0.5]
[1763137399413,0.20742154,96422.0,96420.0,0.5]
[1763137399615,0.0004096,96423.0,96420.0,0.5]
[1763137400243,0.2078296,96423.0,96420.0,0.5]
[1763137400443,0.0004096,96423.0,96420.0,0.5]
[1763137400852,0.0004096,96423.0,96421.0,0.01223335]
[1763137401698,0.0004096,96423.0,96420.0,0.5]
[1763137402121,0.0004096,96423.0,96421.0,0.01223335]
[1763137402517,0.01036806,96450.0,96430.0,0.61522196]
[1763137402518,0.207375,96444.0,96430.0,0.61522196]
[1763137402711,0.20736347,96449.0,96440.0,0.01]
[1763137402945,0.01036699,96460.0,96440.0,0.01]
[1763137402946,0.20735357,96454.0,96450.0,0.01]
[1763137403142,0.0001358,96454.0,96451.0,0.06784]
[1763137403547,0.20735487,96453.0,96451.0,0.06784]
[1763137403704,0.0001358,96454.0,96451.0,0.06784]
[1763137403914,0.00078233,96452.0,96451.0,0.06784]
[1763137405165,0.00078233,96452.0,96451.0,0.5402304]
[1763137405580,0.00078233,96452.0,96451.0,0.5412304]
[1763137406052,0.00078233,96452.0,96451.0,0.5402304]
[1763137406270,0.00078233,96452.0,96451.0,0.5412304]
[1763137406501,0.00078233,96452.0,96451.0,0.9412304]
[1763137406706,0.00078233,96452.0,96451.0,0.9402304]
[1763137407139,0.00078233,96452.0,96451.0,0.9422304]
[1763137407571,0.00078233,96452.0,96451.0,0.9432304]
[1763137408262,0.00078233,96452.0,96451.0,0.9422304]
[1763137408679,0.00078233,96452.0,96451.0,0.9442304]
[1763137408903,0.00078233,96452.0,96451.0,0.83825874]
[1763137409118,0.00024708,96452.0,96451.0,2.04742974]
[1763137410196,0.00024708,96452.0,96451.0,2.04542974]
[1763137410397,0.00012111,96454.0,96452.0,2.36641874]
[1763137410602,0.01056162,96510.0,96491.0,0.323]
[1763137410784,0.00026104,96500.0,96492.0,0.06784]
[1763137410983,0.00026104,96500.0,96499.0,0.08552059]
[1763137411186,0.00026104,96500.0,96499.0,0.67888259]
[1763137411390,0.00026104,96500.0,96499.0,0.66812059]
[1763137412493,0.0002,96520.0,96511.0,0.323]
[1763137412695,0.0002,96540.0,96530.0,0.21]
[1763137412880,0.00065281,96540.0,96531.0,0.39084]
[1763137413293,0.20717015,96539.0,96531.0,0.39084]
[1763137413511,0.00065281,96540.0,96531.0,0.39084]
[1763137414272,0.00065281,96540.0,96531.0,0.39184]
[1763137414650,0.00065281,96540.0,96531.0,0.39084]
[1763137415109,0.00065281,96540.0,96531.0,0.39184]
[1763137415487,0.00065281,96540.0,96531.0,0.39084]
[1763137415840,0.00065281,96540.0,96531.0,0.39184]
[1763137415953,0.00065281,96540.0,96531.0,0.39284]
[1763137416451,0.00065281,96540.0,96531.0,0.39084]
[1763137416642,0.00065281,96540.0,96531.0,0.39384]
[1763137416800,0.00215602,96532.0,96531.0,0.39384]
[1763137417213,0.00215602,96532.0,96531.0,0.79384]
[1763137417811,0.00215602,96532.0,96531.0,0.64604312]
[1763137418032,0.00215602,96532.0,96531.0,1.18775112]
[1763137418233,0.00215602,96532.0,96531.0,1.23316986]
[1763137418435,0.00195602,96532.0,96531.0,1.23316986]
[1763137418752,0.0002,96570.0,96550.0,0.4]
[1763137418753,0.20713326,96557.0,96550.0,0.4]
[1763137418956,0.0002,96570.0,96560.0,0.21]
[1763137419280,0.20710733,96569.0,96566.0,0.08552059]
[1763137419479,0.20710976,96568.0,96567.0,0.0678]
[1763137419682,0.00033576,96570.0,96567.0,0.0678]
[1763137420093,0.00033576,96570.0,96566.0,0.08552059]
[1763137420094,0.20711008,96567.0,96566.0,0.08552059]
[1763137420296,0.0347,96567.0,96540.0,0.4]
[1763137420517,0.20715434,96547.0,96540.0,0.2]
[1763137420707,0.07355,96568.0,96560.0,0.01]
[1763137420910,0.53012295,96561.0,96560.0,0.01]
[1763137421268,0.53012295,96561.0,96560.0,0.011]
[1763137421477,0.56482295,96561.0,96560.0,0.011]
[1763137421887,0.00033576,96570.0,96560.0,0.2778]
[1763137422075,0.00033576,96570.0,96560.0,1.09302196]
[1763137422273,0.0002,96590.0,96570.0,0.4]
[1763137422498,0.0002,96590.0,96580.0,0.01]
[1763137422697,0.0002,96590.0,96581.0,0.0678]
[1763137423345,0.0002,96590.0,96581.0,0.3908]
[1763137423550,0.0002,96600.0,96581.0,0.3908]
[1763137423551,0.0002,96600.0,96591.0,0.323]
[1763137423792,0.00033565,96600.0,96599.0,0.32194659]
[1763137424106,0.20700574,96616.0,96600.0,0.2]
[1763137424259,0.20698652,96625.0,96600.0,1.01522196]
[1763137424466,0.20701844,96610.0,96600.0,0.81522196]
[1763137424668,0.20701844,96610.0,96600.0,0.82522196]
[1763137424869,0.31044704,96635.0,96600.0,0.61522196]
[1763137424870,0.00185747,96601.0,96600.0,0.61522196]
[1763137425070,0.00185747,96601.0,96591.0,0.08552059]
[1763137425071,0.207046,96597.0,96591.0,0.08552059]
[1763137425273,0.20702175,96609.0,96594.0,0.323]
[1763137425477,9e-05,96614.0,96600.0,0.001]
[1763137425478,0.20703719,96601.0,96600.0,0.001]
[1763137425871,0.20703719,96601.0,96595.0,0.06776]
[1763137425872,0.20704791,96596.0,96595.0,0.06776]
[1763137426651,0.20704791,96596.0,96591.0,0.08752059]
[1763137426784,0.20704534,96598.0,96595.0,0.06776]
[1763137427125,0.20704534,96598.0,96595.0,0.06876]
[1763137427329,0.20704534,96598.0,96596.0,0.06776]
[1763137427880,0.20704498,96601.0,96596.0,0.06776]
[1763137427881,0.20703918,96601.0,96596.0,0.06776]
[1763137428081,0.20704175,96599.0,96596.0,0.06776]
[1763137428490,0.20704791,96596.0,96595.0,0.06876]
[1763137429379,0.20704791,96596.0,96595.0,0.06776]
[1763137429582,0.20704791,96596.0,96590.0,0.5]
[1763137429583,0.20705862,96591.0,96590.0,0.5]
[1763137429786,0.20705862,96591.0,96590.0,0.56789565]
[1763137430904,0.00161534,96592.0,96590.0,0.56789565]
[1763137431110,0.20704433,96598.0,96590.0,0.57889565]
[1763137431306,0.20704433,96598.0,96590.0,0.56889565]
[1763137431511,0.20703827,96601.0,96590.0,0.76889565]
[1763137431732,0.02587991,96600.0,96590.0,0.77989565]
[1763137431953,0.20702583,96607.0,96590.0,0.77989565]
[1763137431954,0.06776,96619.0,96590.0,1.38511761]
[1763137432146,0.01034875,96630.0,96600.0,1.01522196]
[1763137432339,0.0105274,96629.0,96601.0,0.06776]
[1763137432542,0.01034875,96630.0,96601.0,0.06776]